[Event "ESP chT Honor Division 2019"]
[Site "Melilla"]
[Date "2019.10.04"]
[Round "5.17"]
[White "Moreno Tejera, Emilio"]
[Black "Gonzalez De La Torre, Santiago"]
[Result "1-0"]
[ECO "B42"]
[WhiteElo "2427"]
[BlackElo "2423"]
[Annotator "NA"]
[PlyCount "55"]
[EventDate "2019.09.30"]
[EventType "team-tourn"]
[EventCountry "ESP"]
[SourceTitle "playchess.com"]
[Source "ChessBase"]
[SourceQuality "1"]
[TimeControl "40/5400+30:1800+30"]

1. e4 {[%emt 0:00:00]} c5 {[%emt 0:00:00]} 2. Nf3 {[%emt 0:00:06]} e6 {[%emt 0:00:00]} 3. d4 {[%emt 0:00:43]} cxd4 {[%emt 0:00:00]} 4. Nxd4 {[%emt 0:00:09]} a6 {[%emt 0:00:00]} 5. Bd3 {[%emt 0:00:26]} Bc5 {[%emt 0:00:00]} 6. Nb3 {[%emt 0:00:49]} Be7 {[%emt 0:00:06]} 7. Qg4 {[%emt 0:01:37]} g6 {[%emt 0:00:11]} 8. Qe2 {[%emt 0:00:18]} d6 {[%emt 0:00:09]} 9. O-O {[%emt 0:00:46]} Nd7 {[%emt 0:00:34]} 10. Na3 {[%emt 0:03:59]} Ne5 {[%emt 0:07:08]} 11. Nc4 {[%emt 0:07:27]} Nxc4 {[%emt 0:00:22]} 12. Bxc4 {[%emt 0:00:07]} Qc7 {[%emt 0:01:45]} 13. Rd1 {[%emt 0:13:31]} Nf6 {[%emt 0:17:01]} 14. Bh6 {[%emt 0:11:43]} d5 {[%emt 0:10:42]} 15. Bd3 {[%emt 0:00:40]} dxe4 {[%emt 0:00:07]} 16. Bxe4 {[%emt 0:00:07]} Bf8 {[%emt 0:00:08]} 17. Bg5 {[%emt 0:16:58]} Bg7 {[%emt 0:00:13]} 18. Qf3 {[%emt 0:04:58]} Nd7 {[%emt 0:00:34]} 19. Bf4 {[%emt 0:05:00]} e5 {[%emt 0:00:16]} 20. Bd2 {[%emt 0:03:20]} a5 {[%emt 0:13:44]} 21. Qc3 {[%emt 0:03:38]} Qxc3 {[%emt 0:00:22]} 22. Bxc3 {[%emt 0:00:04]} a4 {[%emt 0:23:02]} 23. Na5 {[%emt 0:02:04]} Ra7 {[%emt 0:00:15]} 24. Nc4 {[%emt 0:04:07]} f5 {[%emt 0:07:47]} 25. Nd6+ {[%emt 0:04:28]} Ke7 {[%emt 0:12:09]} 26. Bb4 {[%emt 0:00:42]} Kf6 {[%emt 0:00:08]} 27. Nxc8 {[%emt 0:00:38]} Rxc8 {[%emt 0:00:06]} 28. Rd6+ {[%emt 0:00:22]} 1-0

[Event "ESP chT Honor Division 2019"]
[Site "Melilla"]
[Date "2019.10.04"]
[Round "5.18"]
[White "Argandona Riveiro, Inigo"]
[Black "Bivol, Alina"]
[Result "1/2-1/2"]
[ECO "A05"]
[WhiteElo "2413"]
[BlackElo "2371"]
[Annotator "NA"]
[PlyCount "120"]
[EventDate "2019.09.30"]
[EventType "team-tourn"]
[EventCountry "ESP"]
[SourceTitle "playchess.com"]
[Source "ChessBase"]
[SourceQuality "1"]
[TimeControl "40/5400+30:1800+30"]

1. Nf3 {[%emt 0:00:00]} Nf6 {[%emt 0:00:00]} 2. b3 {[%emt 0:00:00]} g6 {[%emt 0:00:06]} 3. Bb2 {[%emt 0:00:00]} Bg7 {[%emt 0:00:07]} 4. g3 {[%emt 0:00:00]} O-O {[%emt 0:00:30]} 5. Bg2 {[%emt 0:00:00]} d6 {[%emt 0:00:07]} 6. d4 {[%emt 0:00:05]} e5 {[%emt 0:01:04]} 7. dxe5 {[%emt 0:02:57]} Ng4 {[%emt 0:00:14]} 8. O-O {[%emt 0:01:10]} Nc6 {[%emt 0:06:50]} 9. c4 {[%emt 0:06:04]} a5 {[%emt 0:11:37]} 10. Nc3 {[%emt 0:02:30]} Ngxe5 {[%emt 0:00:14]} 11. Nxe5 {[%emt 0:00:21]} Nxe5 {[%emt 0:01:01]} 12. Qd2 {[%emt 0:10:35]} a4 {[%emt 0:14:27]} 13. Rad1 {[%emt 0:01:05]} axb3 {[%emt 0:00:24]} 14. axb3 {[%emt 0:00:03]} Be6 {[%emt 0:01:47]} 15. Ra1 {[%emt 0:05:27]} Rxa1 {[%emt 0:06:18]} 16. Rxa1 {[%emt 0:04:04]} c6 {[%emt 0:02:41]} 17. Nd1 {[%emt 0:07:29]} Re8 {[%emt 0:06:32]} 18. h3 {[%emt 0:15:12]} Qc7 {[%emt 0:10:43]} 19. Kh2 {[%emt 0:06:47]} Nd7 {[%emt 0:04:23]} 20. Bxg7 {[%emt 0:01:15]} Kxg7 {[%emt 0:00:02]} 21. Nc3 {[%emt 0:00:15]} Nf6 {[%emt 0:02:15]} 22. Qd4 {[%emt 0:03:25]} c5 {[%emt 0:00:37]} 23. Nb5 {[%emt 0:16:06]} cxd4 {[%emt 0:00:24]} 24. Nxc7 {[%emt 0:00:02]} Re7 {[%emt 0:02:38]} 25. Nb5 {[%emt 0:01:53]} d5 {[%emt 0:00:54]} 26. cxd5 {[%emt 0:00:30]} Bxd5 {[%emt 0:00:47]} 27. Bxd5 {[%emt 0:01:41]} Nxd5 {[%emt 0:00:38]} 28. Nxd4 {[%emt 0:00:06]} Rc7 {[%emt 0:04:28]} 29. Kg2 {[%emt 0:01:04]} Kf6 {[%emt 0:00:51]} 30. Kf3 {[%emt 0:00:44]} h5 {[%emt 0:02:53]} 31. e3 {[%emt 0:00:45]} Nb4 {[%emt 0:01:40]} 32. Ra5 {[%emt 0:02:37]} Ke7 {[%emt 0:03:44]} 33. Re5+ {[%emt 0:02:46]} Kd7 {[%emt 0:04:02]} 34. Rb5 {[%emt 0:00:08]} Nc6 {[%emt 0:00:41]} 35. Rb6 {[%emt 0:05:01]} Nd8 {[%emt 0:02:47]} 36. Rb5 {[%emt 0:01:57]} Nc6 {[%emt 0:01:45]} 37. g4 {[%emt 0:00:42]} hxg4+ {[%emt 0:00:05]} 38. hxg4 {[%emt 0:00:01]} Kd6 {[%emt 0:00:51]} 39. Nxc6 {[%emt 0:03:10]} bxc6 {[%emt 0:00:09]} 40. Rb8 {[%emt 0:00:28]} Ke5 {[%emt 0:01:21]} 41. Re8+ {[%emt 0:31:05]} Kd6 {[%emt 0:31:15]} 42. Kf4 {[%emt 0:00:29]} Rb7 {[%emt 0:01:00]} 43. Rd8+ {[%emt 0:00:02]} Ke6 {[%emt 0:00:15]} 44. Rd3 {[%emt 0:00:02]} Rb4+ {[%emt 0:00:50]} 45. Kg3 {[%emt 0:00:57]} f5 {[%emt 0:00:18]} 46. f4 {[%emt 0:01:05]} g5 {[%emt 0:03:33]} 47. Rc3 {[%emt 0:00:20]} gxf4+ {[%emt 0:01:05]} 48. exf4 {[%emt 0:00:02]} fxg4 {[%emt 0:00:49]} 49. Rxc6+ {[%emt 0:00:42]} Kf5 {[%emt 0:00:14]} 50. Rc5+ {[%emt 0:01:13]} Kf6 {[%emt 0:00:11]} 51. Kxg4 {[%emt 0:00:00]} Rxb3 {[%emt 0:00:00]} 52. Rc6+ {[%emt 0:00:00]} Kg7 {[%emt 0:00:00]} 53. Kg5 {[%emt 0:00:00]} Rb5+ {[%emt 0:00:00]} 54. f5 {[%emt 0:00:00]} Rb7 {[%emt 0:00:00]} 55. Rg6+ {[%emt 0:00:00]} Kf8 {[%emt 0:00:00]} 56. Rh6 {[%emt 0:00:00]} Rg7+ {[%emt 0:00:00]} 57. Kf4 {[%emt 0:00:00]} Rb7 {[%emt 0:00:00]} 58. Rc6 {[%emt 0:00:00]} Ra7 {[%emt 0:00:00]} 59. Ke5 {[%emt 0:00:00]} Re7+ {[%emt 0:00:00]} 60. Re6 {[%emt 0:00:00]} Kf7 1/2-1/2

[Event "ESP chT Honor Division 2019"]
[Site "Melilla"]
[Date "2019.10.04"]
[Round "5.19"]
[White "Iturrizaga Bonelli, Eduardo"]
[Black "Sasikiran, Krishnan"]
[Result "1/2-1/2"]
[ECO "A22"]
[WhiteElo "2629"]
[BlackElo "2675"]
[Annotator "ChessBase"]
[PlyCount "99"]
[EventDate "2019.09.30"]
[EventType "team-tourn"]
[EventCountry "ESP"]
[SourceTitle "playchess.com"]
[Source "ChessBase"]
[SourceQuality "1"]
[TimeControl "40/5400+30:1800+30"]

1. c4 {[%emt 0:00:00]} e5 {[%emt 0:00:00]} 2. Nc3 {[%emt 0:00:00]} Nf6 {[%emt 0:00:01]} 3. g3 {[%emt 0:02:23]} d5 {[%emt 0:00:24]} 4. cxd5 {[%emt 0:00:08]} Nxd5 {[%emt 0:00:12]} 5. Bg2 {[%emt 0:00:03]} Nb6 {[%emt 0:00:14]} 6. Nf3 {[%emt 0:01:32]} Nc6 {[%emt 0:02:21]} 7. O-O {[%emt 0:00:32]} Be7 {[%emt 0:00:43]} 8. d3 {[%emt 0:00:09]} O-O {[%emt 0:01:46]} 9. Be3 {[%emt 0:01:08]} Be6 {[%emt 0:06:29]} 10. Rc1 {[%emt 0:03:47]} Qd7 {[%emt 0:10:56]} 11. a3 {[%emt 0:03:05]} Nd5 {[%emt 0:03:59]} 12. Nxd5 {[%emt 0:21:18]} Bxd5 {[%emt 0:00:20]} 13. Qa4 Rfd8 {[%emt 0:09:59]} 14. Rfd1 {[%emt 0:14:05]} a6 {[%emt 0:07:44]} 15. Qc2 Qe6 {[%emt 0:12:39]} 16. Nd2 {[%emt 0:18:50]} h5 {[%emt 0:03:56]} 17. Bxd5 {[%emt 0:01:08]} Rxd5 {[%emt 0:02:16]} 18. Qb3 {[%emt 0:00:35]} Na5 {[%emt 0:01:54]} 19. Qa2 {[%emt 0:09:56]} Rc8 {[%emt 0:04:36]} 20. h4 {[%emt 0:10:40]} Nc6 {[%emt 0:08:47]} 21. Qb3 {[%emt 0:00:09]} Na5 {[%emt 0:02:03]} 22. Qa2 {[%emt 0:00:02]} Nc6 {[%emt 0:00:32]} 23. Qb3 {[%emt 0:00:04]} Nd8 {[%emt 0:02:09]} 24. Nc4 {[%emt 0:06:39]} Rb5 {[%emt 0:01:43]} 25. Qc3 {[%emt 0:00:35]} Nc6 {[%emt 0:02:04]} 26. a4 {[%emt 0:04:36]} Rb4 {[%emt 0:03:57]} 27. a5 {[%emt 0:00:54]} Rd8 {[%emt 0:02:10]} 28. Ra1 {[%emt 0:01:09]} Rb5 {[%emt 0:02:23]} 29. Qe1 {[%emt 0:00:16]} e4 {[%emt 0:03:29]} 30. Qf1 {[%emt 0:00:33]} Rbd5 {[%emt 0:01:06]} 31. Bf4 {[%emt 0:00:28]} exd3 {[%emt 0:01:03]} 32. exd3 {[%emt 0:00:22]} Qd7 {[%emt 0:00:14]} 33. Rac1 {[%emt 0:00:51]} Bf6 {[%emt 0:00:45]} 34. Kh1 {[%emt 0:00:28]} Rb5 {[%emt 0:00:48]} 35. Rd2 {[%emt 0:00:31]} Nd4 {[%emt 0:00:40]} 36. Na3 {[%emt 0:00:11]} Nb3 {[%emt 0:01:36]} 37. Nxb5 {[%emt 0:00:08]} Nxd2 {[%emt 0:00:06]} 38. Bxd2 {[%emt 0:00:05]} axb5 {[%emt 0:00:32]} 39. Bc3 {[%emt 0:01:30]} Bxc3 {[%emt 0:00:58]} 40. Rxc3 {[%emt 0:00:05]} c6 {[%emt 0:00:22]} 41. Kh2 {[%emt 0:05:56]} Re8 {[%emt 0:08:13]} 42. Qd1 {[%emt 0:10:24]} Re5 {[%emt 0:02:47]} 43. Qf3 {[%emt 0:01:22]} Rd5 {[%emt 0:03:51]} 44. Qf4 {[%emt 0:04:35]} g6 {[%emt 0:02:09]} 45. Ra3 {[%emt 0:03:09]} Qc8 {[%emt 0:05:18]} 46. d4 {[%emt 0:04:33]} Kg7 {[%emt 0:01:43]} 47. Rf3 {[%emt 0:00:36]} Qf5 {[%emt 0:04:34]} 48. Qe3 {[%emt 0:01:04]} Qe6 {[%emt 0:01:32]} 49. b4 {[%emt 0:00:55]} Qd7 {[%emt 0:02:29]} 50. Rf4 {[%emt 0:00:23]} 1/2-1/2

[Event "ESP chT Honor Division 2019"]
[Site "Melilla"]
[Date "2019.10.04"]
[Round "5.20"]
[White "Ganguly, Surya Shekhar"]
[Black "Vazquez Igarza, Renier"]
[Result "1/2-1/2"]
[ECO "B92"]
[WhiteElo "2658"]
[BlackElo "2557"]
[Annotator "ChessBase"]
[PlyCount "82"]
[EventDate "2019.09.30"]
[EventType "team-tourn"]
[EventCountry "ESP"]
[SourceTitle "playchess.com"]
[Source "ChessBase"]
[SourceQuality "1"]
[TimeControl "40/5400+30:1800+30"]

1. e4 {[%emt 0:00:00]} c5 {[%emt 0:00:00]} 2. Nf3 {[%emt 0:00:00]} d6 {[%emt 0:00:00]} 3. d4 {[%emt 0:00:16]} cxd4 {[%emt 0:00:01]} 4. Nxd4 {[%emt 0:00:07]} Nf6 {[%emt 0:00:06]} 5. Nc3 {[%emt 0:00:05]} a6 {[%emt 0:00:06]} 6. Be2 {[%emt 0:00:31]} e5 {[%emt 0:00:19]} 7. Nb3 {[%emt 0:00:09]} Be7 {[%emt 0:00:28]} 8. O-O {[%emt 0:00:07]} O-O {[%emt 0:00:19]} 9. Be3 {[%emt 0:00:38]} Be6 {[%emt 0:01:02]} 10. Re1 {[%emt 0:00:06]} Qc7 {[%emt 0:02:25]} 11. Bf3 {[%emt 0:04:46]} Rc8 {[%emt 0:00:58]} 12. a4 {[%emt 0:11:05]} Nbd7 {[%emt 0:01:25]} 13. h3 {[%emt 0:04:38]} h6 {[%emt 0:03:30]} 14. Nd2 {[%emt 0:00:53]} Qc6 {[%emt 0:06:06]} 15. Nf1 {[%emt 0:04:53]} b5 {[%emt 0:05:56]} 16. axb5 {[%emt 0:07:19]} axb5 {[%emt 0:07:30]} 17. Nd5 {[%emt 0:02:48]} Bxd5 {[%emt 0:07:53]} 18. exd5 {[%emt 0:00:07]} Qb7 {[%emt 0:05:03]} 19. Rxa8 {[%emt 0:01:13]} Qxa8 {[%emt 0:00:16]} 20. Ng3 {[%emt 0:00:06]} Bf8 {[%emt 0:00:25]} 21. c3 {[%emt 0:01:23]} Qb7 {[%emt 0:04:43]} 22. Qb3 {[%emt 0:03:29]} Nc5 {[%emt 0:05:37]} 23. Bxc5 {[%emt 0:00:10]} Rxc5 {[%emt 0:00:14]} 24. Ra1 {[%emt 0:00:06]} g6 {[%emt 0:01:57]} 25. Ra5 {[%emt 0:01:37]} h5 {[%emt 0:00:45]} 26. h4 {[%emt 0:06:53]} Qe7 {[%emt 0:09:46]} 27. Rxb5 {[%emt 0:05:59]} Rxb5 {[%emt 0:00:22]} 28. Qxb5 {[%emt 0:00:06]} e4 {[%emt 0:00:03]} 29. Be2 {[%emt 0:02:18]} Qe5 {[%emt 0:00:29]} 30. Nf1 {[%emt 0:01:15]} Bh6 {[%emt 0:05:18]} 31. c4 {[%emt 0:03:21]} Bc1 {[%emt 0:04:07]} 32. Qb8+ {[%emt 0:06:36]} Kg7 {[%emt 0:02:03]} 33. c5 {[%emt 0:00:07]} e3 {[%emt 0:03:05]} 34. f3 {[%emt 0:01:17]} Qxd5 {[%emt 0:05:50]} 35. cxd6 {[%emt 0:05:52]} Qd4 {[%emt 0:02:26]} 36. g3 {[%emt 0:01:19]} Bxb2 {[%emt 0:01:22]} 37. Qb3 {[%emt 0:01:39]} Bc3 {[%emt 0:03:45]} 38. Kg2 {[%emt 0:00:15]} Bd2 {[%emt 0:04:13]} 39. Qd3 {[%emt 0:02:17]} Qxd3 {[%emt 0:01:47]} 40. Bxd3 {[%emt 0:00:03]} Kf8 {[%emt 0:00:38]} 41. f4 {[%emt 0:30:38]} Bb4 {[%emt 0:30:30]} 1/2-1/2

[Event "ESP chT Honor Division 2019"]
[Site "Melilla"]
[Date "2019.10.04"]
[Round "5.21"]
[White "Moreno Ruiz, Javier"]
[Black "Santos Ruiz, Miguel"]
[Result "0-1"]
[ECO "E46"]
[WhiteElo "2470"]
[BlackElo "2560"]
[Annotator "ChessBase"]
[PlyCount "80"]
[EventDate "2019.09.30"]
[EventType "team-tourn"]
[EventCountry "ESP"]
[SourceTitle "playchess.com"]
[Source "ChessBase"]
[SourceQuality "1"]
[TimeControl "40/5400+30:1800+30"]

1. d4 {[%emt 0:00:00]} Nf6 {[%emt 0:00:00]} 2. c4 {[%emt 0:00:12]} e6 {[%emt 0:00:00]} 3. Nc3 {[%emt 0:00:10]} Bb4 {[%emt 0:00:00]} 4. e3 {[%emt 0:00:13]} O-O {[%emt 0:00:03]} 5. Nge2 {[%emt 0:00:12]} Re8 {[%emt 0:00:07]} 6. a3 {[%emt 0:00:21]} Bf8 {[%emt 0:00:07]} 7. Ng3 {[%emt 0:00:27]} d5 {[%emt 0:00:09]} 8. Be2 {[%emt 0:00:10]} b6 {[%emt 0:00:06]} 9. cxd5 {[%emt 0:04:51]} exd5 {[%emt 0:01:10]} 10. b4 {[%emt 0:00:10]} c6 {[%emt 0:09:36]} 11. O-O {[%emt 0:00:38]} Ba6 {[%emt 0:00:08]} 12. Bxa6 {[%emt 0:03:04]} Nxa6 {[%emt 0:00:37]} 13. Qd3 {[%emt 0:00:07]} Nb8 {[%emt 0:01:32]} 14. Bd2 {[%emt 0:00:59]} Nbd7 {[%emt 0:09:36]} 15. Rab1 {[%emt 0:03:34]} b5 {[%emt 0:13:12]} 16. a4 {[%emt 0:03:23]} a6 {[%emt 0:00:20]} 17. a5 {[%emt 0:00:46]} Bd6 {[%emt 0:10:20]} 18. f3 {[%emt 0:03:47]} Qc7 {[%emt 0:04:53]} 19. Nce2 {[%emt 0:01:48]} h5 {[%emt 0:04:36]} 20. Rfc1 {[%emt 0:02:15]} h4 {[%emt 0:10:42]} 21. Nf1 {[%emt 0:01:15]} Nf8 {[%emt 0:00:25]} 22. Qf5 {[%emt 0:09:23]} Ng6 {[%emt 0:03:22]} 23. Rc2 {[%emt 0:04:22]} Re6 {[%emt 0:08:17]} 24. Rbc1 {[%emt 0:05:18]} Ne7 {[%emt 0:03:02]} 25. Qd3 {[%emt 0:15:46]} g5 {[%emt 0:08:40]} 26. h3 {[%emt 0:02:49]} Re8 {[%emt 0:00:03]} 27. Kh1 {[%emt 0:03:11]} Qd7 {[%emt 0:00:53]} 28. Be1 {[%emt 0:01:39]} Nh5 {[%emt 0:04:00]} 29. e4 {[%emt 0:05:24]} dxe4 {[%emt 0:00:54]} 30. fxe4 {[%emt 0:00:09]} Ng6 {[%emt 0:00:06]} 31. e5 {[%emt 0:16:56]} Bxe5 {[%emt 0:00:38]} 32. Qf5 {[%emt 0:00:05]} Bh8 {[%emt 0:03:48]} 33. Qxg5 {[%emt 0:01:50]} Nf6 {[%emt 0:01:16]} 34. Nf4 {[%emt 0:08:27]} Rxe1 {[%emt 0:00:05]} 35. Nxg6 {[%emt 0:00:22]} fxg6 {[%emt 0:00:06]} 36. Qxg6+ {[%emt 0:01:15]} Bg7 {[%emt 0:00:04]} 37. Qg5 {[%emt 0:01:12]} Qxd4 {[%emt 0:01:37]} 38. Qf5 {[%emt 0:01:46]} Qe4 {[%emt 0:01:24]} 39. Qxe4 {[%emt 0:00:42]} R8xe4 {[%emt 0:00:04]} 40. Rxc6 {[%emt 0:00:27]} Nh5 {[%emt 0:00:39]} 0-1

[Event "ESP chT Honor Division 2019"]
[Site "Melilla"]
[Date "2019.10.04"]
[Round "5.22"]
[White "Tejedor Fuente, Enrique"]
[Black "Quispe Arteaga, Gabriel"]
[Result "0-1"]
[ECO "B23"]
[WhiteElo "2453"]
[BlackElo "2404"]
[Annotator "ChessBase"]
[PlyCount "144"]
[EventDate "2019.09.30"]
[EventType "team-tourn"]
[EventCountry "ESP"]
[SourceTitle "playchess.com"]
[Source "ChessBase"]
[SourceQuality "1"]
[TimeControl "40/5400+30:1800+30"]

1. e4 {[%emt 0:00:00]} c5 {[%emt 0:00:00]} 2. Nc3 {[%emt 0:00:21]} e6 {[%emt 0:00:00]} 3. g3 {[%emt 0:00:29]} Nc6 {[%emt 0:00:29]} 4. Bg2 {[%emt 0:00:03]} g6 {[%emt 0:00:37]} 5. d3 {[%emt 0:00:06]} Bg7 {[%emt 0:00:05]} 6. Be3 {[%emt 0:00:14]} b6 {[%emt 0:00:59]} 7. Qd2 {[%emt 0:03:32]} Bb7 {[%emt 0:04:32]} 8. Nge2 {[%emt 0:01:42]} d6 {[%emt 0:02:54]} 9. h3 {[%emt 0:15:25]} Nd4 {[%emt 0:05:10]} 10. Bxd4 {[%emt 0:14:20]} cxd4 {[%emt 0:00:21]} 11. Nb5 {[%emt 0:00:01]} e5 {[%emt 0:00:17]} 12. Qb4 {[%emt 0:00:01]} Bf8 {[%emt 0:04:56]} 13. c3 {[%emt 0:10:41]} a6 {[%emt 0:06:47]} 14. Na3 {[%emt 0:00:07]} dxc3 {[%emt 0:01:30]} 15. Nxc3 {[%emt 0:00:02]} b5 {[%emt 0:04:34]} 16. Qb3 {[%emt 0:02:44]} Nf6 {[%emt 0:03:08]} 17. Nc2 {[%emt 0:05:18]} Nd7 {[%emt 0:02:13]} 18. Ne3 {[%emt 0:00:31]} Bh6 {[%emt 0:00:44]} 19. Ncd5 {[%emt 0:02:53]} Nc5 {[%emt 0:05:41]} 20. Qd1 {[%emt 0:00:43]} Bxe3 {[%emt 0:03:57]} 21. Nxe3 {[%emt 0:00:01]} Qa5+ {[%emt 0:00:12]} 22. Ke2 {[%emt 0:07:01]} O-O {[%emt 0:06:37]} 23. Qd2 {[%emt 0:02:00]} Qb6 {[%emt 0:02:20]} 24. h4 {[%emt 0:20:25]} f5 {[%emt 0:04:52]} 25. f3 {[%emt 0:05:04]} Ne6 {[%emt 0:02:06]} 26. h5 {[%emt 0:03:17]} f4 {[%emt 0:04:29]} 27. gxf4 {[%emt 0:00:28]} Nxf4+ {[%emt 0:05:15]} 28. Kd1 {[%emt 0:00:01]} Qd4 {[%emt 0:04:08]} 29. hxg6 {[%emt 0:02:49]} hxg6 {[%emt 0:00:22]} 30. Bf1 {[%emt 0:00:21]} Rac8 {[%emt 0:04:23]} 31. Rc1 {[%emt 0:00:22]} Kg7 {[%emt 0:01:57]} 32. Rxc8 {[%emt 0:01:27]} Bxc8 {[%emt 0:00:43]} 33. Kc1 {[%emt 0:00:48]} Be6 {[%emt 0:01:47]} 34. Kb1 {[%emt 0:00:06]} Bc4 {[%emt 0:01:19]} 35. Nc2 {[%emt 0:03:36]} Bxd3 {[%emt 0:00:19]} 36. Bxd3 {[%emt 0:00:17]} Qxd3 {[%emt 0:00:02]} 37. Qh2 {[%emt 0:00:38]} Nh5 {[%emt 0:01:10]} 38. Rg1 {[%emt 0:00:31]} Rxf3 {[%emt 0:00:26]} 39. a3 {[%emt 0:00:33]} Rf1+ {[%emt 0:01:13]} 40. Rxf1 {[%emt 0:00:01]} Qxf1+ {[%emt 0:00:01]} 41. Ka2 {[%emt 0:30:06]} Qc4+ {[%emt 0:30:08]} 42. Ka1 {[%emt 0:00:41]} Qxe4 {[%emt 0:00:11]} 43. Qd2 {[%emt 0:00:01]} Nf4 {[%emt 0:00:39]} 44. Nb4 {[%emt 0:00:41]} a5 {[%emt 0:00:53]} 45. Qxd6 {[%emt 0:00:00]} Qe1+ {[%emt 0:00:00]} 46. Ka2 {[%emt 0:00:00]} axb4 {[%emt 0:00:00]} 47. axb4 {[%emt 0:00:00]} Qe2 {[%emt 0:00:00]} 48. Qe7+ {[%emt 0:00:00]} Kh6 {[%emt 0:00:00]} 49. Ka3 {[%emt 0:00:00]} g5 {[%emt 0:00:00]} 50. b3 {[%emt 0:00:00]} Qe1 {[%emt 0:00:00]} 51. Ka2 {[%emt 0:00:00]} Ng6 {[%emt 0:00:00]} 52. Qc5 {[%emt 0:00:00]} Qd2+ {[%emt 0:00:00]} 53. Ka3 {[%emt 0:00:00]} Qd4 {[%emt 0:00:00]} 54. Qc1 {[%emt 0:00:00]} e4 {[%emt 0:00:00]} 55. Qh1+ {[%emt 0:00:00]} Kg7 56. Qc1 {[%emt 0:00:00]} e3 {[%emt 0:00:00]} 57. Qc7+ {[%emt 0:00:00]} Kh6 {[%emt 0:00:00]} 58. Qh2+ {[%emt 0:00:00]} Nh4 {[%emt 0:00:00]} 59. Ka2 {[%emt 0:00:00]} Qd2+ {[%emt 0:00:00]} 60. Ka3 {[%emt 0:00:00]} Qc1+ {[%emt 0:00:00]} 61. Ka2 {[%emt 0:00:00]} Qd1 {[%emt 0:00:00]} 62. Qe5 {[%emt 0:00:00]} Qf3 {[%emt 0:00:00]} 63. Ka3 {[%emt 0:00:00]} Qa8+ {[%emt 0:00:00]} 64. Kb2 {[%emt 0:00:00]} Qa7 {[%emt 0:00:00]} 65. Qh8+ {[%emt 0:00:00]} Kg6 {[%emt 0:00:00]} 66. Qe8+ {[%emt 0:00:00]} Kf5 {[%emt 0:00:00]} 67. Qxb5+ {[%emt 0:00:00]} Kf4 {[%emt 0:00:00]} 68. Qc4+ {[%emt 0:00:00]} Kg3 {[%emt 0:00:00]} 69. Qd5 {[%emt 0:00:00]} Nf3 {[%emt 0:00:00]} 70. Qe6 {[%emt 0:00:00]} Kf2 {[%emt 0:00:00]} 71. b5 {[%emt 0:00:00]} e2 {[%emt 0:00:00]} 72. b6 {[%emt 0:00:00]} Qg7+ {[%emt 0:00:00]} 0-1

[Event "ESP chT Honor Division 2019"]
[Site "Melilla"]
[Date "2019.10.04"]
[Round "5.23"]
[White "Martin Duque, Jesus"]
[Black "Ubilava, Elizbar"]
[Result "1-0"]
[ECO "C50"]
[WhiteElo "2445"]
[BlackElo "2481"]
[Annotator "ChessBase"]
[PlyCount "129"]
[EventDate "2019.09.30"]
[EventType "team-tourn"]
[EventCountry "ESP"]
[SourceTitle "playchess.com"]
[Source "ChessBase"]
[SourceQuality "1"]
[TimeControl "40/5400+30:1800+30"]

1. e4 {[%emt 0:00:00]} e5 {[%emt 0:00:00]} 2. Nf3 {[%emt 0:00:00]} Nc6 {[%emt 0:00:00]} 3. Bc4 {[%emt 0:00:00]} Bc5 {[%emt 0:00:00]} 4. d3 {[%emt 0:00:03]} Nf6 {[%emt 0:00:10]} 5. O-O {[%emt 0:00:14]} d6 {[%emt 0:00:18]} 6. c3 {[%emt 0:00:11]} O-O {[%emt 0:00:22]} 7. h3 {[%emt 0:00:29]} h6 {[%emt 0:00:36]} 8. Re1 {[%emt 0:00:00]} a6 {[%emt 0:02:05]} 9. a4 Ne7 {[%emt 0:12:17]} 10. Nbd2 {[%emt 0:01:24]} Ng6 {[%emt 0:00:28]} 11. Nf1 {[%emt 0:01:05]} Re8 {[%emt 0:12:30]} 12. Ng3 {[%emt 0:01:14]} Ba7 {[%emt 0:00:45]} 13. Qb3 {[%emt 0:05:55]} Rf8 14. d4 {[%emt 0:02:04]} c6 {[%emt 0:02:23]} 15. dxe5 {[%emt 0:12:30]} dxe5 {[%emt 0:04:10]} 16. a5 {[%emt 0:00:28]} Qc7 {[%emt 0:24:17]} 17. Nf5 Nxe4 18. Nxh6+ {[%emt 0:18:34]} gxh6 {[%emt 0:00:37]} 19. Rxe4 {[%emt 0:00:04]} Bf5 {[%emt 0:00:18]} 20. Re1 {[%emt 0:03:52]} Kg7 {[%emt 0:01:10]} 21. Be3 {[%emt 0:01:45]} Bxe3 {[%emt 0:01:21]} 22. Rxe3 {[%emt 0:01:11]} Rad8 {[%emt 0:01:06]} 23. Rae1 {[%emt 0:04:55]} Rfe8 24. Nd4 {[%emt 0:09:16]} Bc8 {[%emt 0:03:25]} 25. Qc2 {[%emt 0:04:42]} Re7 {[%emt 0:10:13]} 26. Nf5+ {[%emt 0:02:40]} Bxf5 {[%emt 0:00:06]} 27. Qxf5 {[%emt 0:00:03]} Rd6 {[%emt 0:00:50]} 28. Rf3 {[%emt 0:06:26]} Qd7 {[%emt 0:03:16]} 29. Qh5 {[%emt 0:00:13]} Qd8 {[%emt 0:01:22]} 30. Re4 {[%emt 0:04:43]} Nf4 {[%emt 0:03:57]} 31. Rg3+ {[%emt 0:07:50]} Rg6 {[%emt 0:00:27]} 32. Qh4 {[%emt 0:02:14]} Qd6 {[%emt 0:03:54]} 33. Ree3 {[%emt 0:02:59]} Qf6 {[%emt 0:01:29]} 34. Qxf6+ {[%emt 0:01:35]} Kxf6 {[%emt 0:00:06]} 35. Ref3 {[%emt 0:01:27]} Rd7 {[%emt 0:01:32]} 36. Kh2 {[%emt 0:01:13]} Rd2 {[%emt 0:01:41]} 37. b4 {[%emt 0:01:34]} Ke7 {[%emt 0:01:39]} 38. Rxg6 {[%emt 0:01:19]} fxg6 {[%emt 0:00:09]} 39. g3 {[%emt 0:00:25]} Nd5 {[%emt 0:00:14]} 40. Bd3 {[%emt 0:00:26]} g5 {[%emt 0:00:34]} 41. Bg6 {[%emt 0:30:32]} Nf6 {[%emt 0:40:04]} 42. Kg2 {[%emt 0:00:15]} c5 {[%emt 0:00:00]} 43. Re3 cxb4 44. cxb4 {[%emt 0:00:00]} Rb2 {[%emt 0:00:00]} 45. Rxe5+ {[%emt 0:00:00]} Kd6 {[%emt 0:00:00]} 46. Re1 {[%emt 0:00:00]} Rxb4 {[%emt 0:00:00]} 47. Bf5 {[%emt 0:00:00]} Nd5 {[%emt 0:00:00]} 48. Re6+ {[%emt 0:00:00]} Kc5 {[%emt 0:00:00]} 49. Rxh6 {[%emt 0:00:00]} Rb5 {[%emt 0:00:00]} 50. Rg6 {[%emt 0:00:00]} Rxa5 51. Rxg5 {[%emt 0:00:00]} Kd6 {[%emt 0:00:00]} 52. h4 {[%emt 0:00:00]} Ne7 {[%emt 0:00:00]} 53. Bc2 Rxg5 {[%emt 0:00:02]} 54. hxg5 {[%emt 0:00:00]} b5 {[%emt 0:00:05]} 55. Kh3 {[%emt 0:00:00]} a5 {[%emt 0:00:32]} 56. f4 {[%emt 0:00:00]} a4 57. Kg4 Ke6 {[%emt 0:04:23]} 58. Kh5 {[%emt 0:00:30]} a3 {[%emt 0:02:22]} 59. g4 Kd5 60. Bb3+ {[%emt 0:03:53]} Kd4 {[%emt 0:01:51]} 61. f5 {[%emt 0:01:17]} Kc3 {[%emt 0:00:12]} 62. Be6 {[%emt 0:01:50]} Nc6 {[%emt 0:00:51]} 63. f6 {[%emt 0:00:55]} Nd8 {[%emt 0:00:27]} 64. Bd5 b4 {[%emt 0:00:11]} 65. g6 {[%emt 0:00:52]} 1-0